[Event "Swedish U16 Team Championship 2019 - Final"]
[Site "Molnlycke Kulturhus, Biblioteksgatan 2, Molnlycke, Sweden"]
[Date "2019.08.16"]
[Round "2.7"]
[White "Ytterberg, Felix"]
[Black "Kucuksari, Kaan"]
[Result "0-1"]
[TimeControl "90 minutes + 30 seconds per move from move one."]
[BlackTitle "FM"]
[WhiteElo "2033"]
[BlackElo "2286"]

1. d4 {[%clk 01:30:42]} {[%emt 00:00:16]} f5 {[%clk 01:30:56]} {[%emt
00:00:05]} 2. c4 {[%clk 01:30:50]} {[%emt 00:00:21]} Nf6 {[%clk 01:31:23]}
{[%emt 00:00:04]} 3. Nc3 {[%clk 01:31:02]} {[%emt 00:00:17]} g6 {[%clk
01:31:46]} {[%emt 00:00:08]} 4. e3 {[%clk 01:31:18]} {[%emt 00:00:14]} Bg7
{[%clk 01:32:11]} {[%emt 00:00:06]} 5. Bd3 {[%clk 01:31:34]} {[%emt 00:00:13]}
b6 {[%clk 01:31:35]} {[%emt 00:01:08]} 6. Nge2 {[%clk 01:31:45]} {[%emt
00:00:14]} Bb7 {[%clk 01:32:04]} {[%emt 00:00:05]} 7. f3 {[%clk 01:31:43]}
{[%emt 00:00:31]} O-O {[%clk 01:29:51]} {[%emt 00:02:44]} 8. Qc2 {[%clk
01:31:37]} {[%emt 00:00:35]} e6 {[%clk 01:27:33]} {[%emt 00:02:49]} 9. Bd2
{[%clk 01:31:23]} {[%emt 00:00:43]} c5 {[%clk 01:27:24]} {[%emt 00:00:40]} 10.
a3 {[%clk 01:26:01]} {[%emt 00:05:52]} Qe7 {[%clk 01:20:52]} {[%emt 00:07:02]}
11. b4 {[%clk 01:22:08]} {[%emt 00:04:22]} Nc6 {[%clk 01:16:19]} {[%emt
00:05:04]} 12. bxc5 {[%clk 01:15:22]} {[%emt 00:07:16]} bxc5 {[%clk 01:16:43]}
{[%emt 00:00:06]} 13. Rb1 {[%clk 01:15:40]} {[%emt 00:00:12]} Rab8 {[%clk
01:15:17]} {[%emt 00:01:57]} 14. Qa2 {[%clk 01:01:41]} {[%emt 00:14:28]} cxd4
{[%clk 01:06:08]} {[%emt 00:09:40]} 15. exd4 {[%clk 01:01:01]} {[%emt
00:01:08]} Nh5 {[%clk 01:06:16]} {[%emt 00:00:24]} 16. Be3 {[%clk 01:00:14]}
{[%emt 00:01:15]} Qh4+ {[%clk 01:06:41]} {[%emt 00:00:07]} 17. Bf2 {[%clk
01:00:02]} {[%emt 00:00:40]} Qg5 {[%clk 01:07:10]} {[%emt 00:00:03]} 18. O-O
{[%clk 00:58:34]} {[%emt 00:01:54]} Nf4 {[%clk 01:05:08]} {[%emt 00:02:36]} 19.
Nxf4 {[%clk 00:58:25]} {[%emt 00:00:39]} Nxd4 {[%clk 00:54:58]} {[%emt
00:10:42]} 20. Bg3 {[%clk 00:55:31]} {[%emt 00:03:23]} h5 {[%clk 00:46:55]}
{[%emt 00:08:33]} 21. Rxb7 {[%clk 00:53:28]} {[%emt 00:02:33]} Rxb7 {[%clk
00:47:23]} {[%emt 00:00:02]} 22. Re1 {[%clk 00:49:19]} {[%emt 00:04:39]} Rb3
{[%clk 00:19:40]} {[%emt 00:28:14]} 23. Nce2 {[%clk 00:48:26]} {[%emt
00:01:22]} Rfb8 {[%clk 00:16:36]} {[%emt 00:03:32]} 24. Nxd4 {[%clk 00:35:54]}
{[%emt 00:13:04]} Bxd4+ {[%clk 00:16:59]} {[%emt 00:00:07]} 25. Kh1 {[%clk
00:35:59]} {[%emt 00:00:24]} Rb2 {[%clk 00:16:42]} {[%emt 00:00:48]} 26. Qa1
{[%clk 00:36:17]} {[%emt 00:00:10]} h4 {[%clk 00:16:18]} {[%emt 00:00:57]} 27.
Nxe6 {[%clk 00:33:27]} {[%emt 00:03:20]} dxe6 {[%clk 00:11:46]} {[%emt
00:05:03]} 28. Rxe6 {[%clk 00:32:48]} {[%emt 00:01:08]} Rb1+ {[%clk 00:10:15]}
{[%emt 00:02:01]} 29. Qxb1 {[%clk 00:31:31]} {[%emt 00:01:47]} Rxb1+ {[%clk
00:10:43]} {[%emt 00:00:02]} 30. Bxb1 {[%clk 00:31:40]} {[%emt 00:00:20]} hxg3
{[%clk 00:11:12]} {[%emt 00:00:03]} 31. Re8+ {[%clk 00:31:45]} {[%emt
00:00:25]} Kf7 {[%clk 00:11:40]} {[%emt 00:00:01]} 32. Re1 {[%clk 00:30:23]}
{[%emt 00:01:50]} Qd2 {[%clk 00:12:08]} {[%emt 00:00:03]} 33. Rf1 {[%clk
00:30:35]} {[%emt 00:00:18]} Qe2 {[%clk 00:12:36]} {[%emt 00:00:03]} 34. Rc1
{[%clk 00:30:40]} {[%emt 00:00:25]} Be3 {[%clk 00:13:05]} {[%emt 00:00:02]} 35.
Ba2 {[%clk 00:30:39]} {[%emt 00:00:30]} Bxc1 {[%clk 00:13:28]} {[%emt
00:00:07]} 36. c5+ {[%clk 00:31:00]} {[%emt 00:00:08]} Kf6 {[%clk 00:13:52]}
{[%emt 00:00:07]} 0-1

[Event "Swedish U16 Team Championship 2019 - Final"]
[Site "Molnlycke Kulturhus, Biblioteksgatan 2, Molnlycke, Sweden"]
[Date "2019.08.16"]
[Round "2.8"]
[White "Bensryd, Hampus"]
[Black "Dingertz, Erik"]
[Result "1/2-1/2"]
[TimeControl "90 minutes + 30 seconds per move from move one."]
[WhiteElo "1907"]
[BlackElo "1888"]

1. e4 {[%clk 01:30:19]} {[%emt 00:00:40]} e5 {[%clk 01:30:49]} {[%emt
00:00:09]} 2. Nf3 {[%clk 01:29:54]} {[%emt 00:00:57]} Nc6 {[%clk 01:31:03]}
{[%emt 00:00:16]} 3. d4 {[%clk 01:28:38]} {[%emt 00:01:46]} exd4 {[%clk
01:31:26]} {[%emt 00:00:07]} 4. Bc4 {[%clk 01:29:04]} {[%emt 00:00:04]} Nf6
{[%clk 01:31:46]} {[%emt 00:00:10]} 5. e5 {[%clk 01:29:07]} {[%emt 00:00:27]}
d5 {[%clk 01:32:02]} {[%emt 00:00:13]} 6. Bb5 {[%clk 01:29:33]} {[%emt
00:00:05]} Ne4 {[%clk 01:32:23]} {[%emt 00:00:09]} 7. Nxd4 {[%clk 01:29:55]}
{[%emt 00:00:08]} Bd7 {[%clk 01:32:43]} {[%emt 00:00:09]} 8. Bxc6 {[%clk
01:29:57]} {[%emt 00:00:29]} bxc6 {[%clk 01:33:06]} {[%emt 00:00:07]} 9. O-O
{[%clk 01:29:47]} {[%emt 00:00:40]} Bc5 {[%clk 01:33:14]} {[%emt 00:00:21]} 10.
f3 {[%clk 01:30:02]} {[%emt 00:00:16]} Ng5 {[%clk 01:33:33]} {[%emt 00:00:10]}
11. Be3 {[%clk 01:30:12]} {[%emt 00:00:20]} Bb6 {[%clk 01:28:19]} {[%emt
00:05:44]} 12. f4 {[%clk 01:30:26]} {[%emt 00:00:17]} Ne4 {[%clk 01:28:22]}
{[%emt 00:00:25]} 13. Nd2 {[%clk 01:30:48]} {[%emt 00:00:09]} Nxd2 {[%clk
01:27:36]} {[%emt 00:01:16]} 14. Qxd2 {[%clk 01:31:03]} {[%emt 00:00:15]} c5
{[%clk 01:19:38]} {[%emt 00:08:28]} 15. Nf3 {[%clk 01:31:22]} {[%emt 00:00:11]}
d4 {[%clk 01:12:08]} {[%emt 00:08:00]} 16. Bf2 {[%clk 01:27:11]} {[%emt
00:04:41]} Bc6 {[%clk 01:11:50]} {[%emt 00:00:47]} 17. a4 {[%clk 01:19:58]}
{[%emt 00:07:44]} a5 {[%clk 01:11:14]} {[%emt 00:01:04]} 18. Qd3 {[%clk
01:18:30]} {[%emt 00:02:00]} Qd5 {[%clk 01:08:36]} {[%emt 00:03:06]} 19. b3
{[%clk 01:18:37]} {[%emt 00:00:24]} O-O-O {[%clk 01:05:37]} {[%emt 00:03:29]}
20. Rfd1 {[%clk 01:13:32]} {[%emt 00:05:35]} h6 {[%clk 01:02:12]} {[%emt
00:03:55]} 21. Bh4 {[%clk 01:02:30]} {[%emt 00:11:32]} Rdg8 {[%clk 00:56:42]}
{[%emt 00:05:52]} 22. Rd2 {[%clk 01:00:25]} {[%emt 00:02:43]} g5 {[%clk
00:32:04]} {[%emt 00:25:08]} 23. fxg5 {[%clk 00:59:11]} {[%emt 00:01:44]} hxg5
{[%clk 00:32:28]} {[%emt 00:00:07]} 24. Bxg5 {[%clk 00:49:06]} {[%emt
00:10:35]} Qe6 {[%clk 00:32:05]} {[%emt 00:00:51]} 25. Kh1 {[%clk 00:34:39]}
{[%emt 00:15:00]} Qg4 {[%clk 00:29:44]} {[%emt 00:02:48]} 26. Bf6 {[%clk
00:30:26]} {[%emt 00:04:45]} Rh3 {[%clk 00:29:08]} {[%emt 00:01:04]} 27. Rf1
{[%clk 00:30:03]} {[%emt 00:00:54]} Rh5 {[%clk 00:17:33]} {[%emt 00:12:04]} 28.
Qc4 {[%clk 00:20:32]} {[%emt 00:10:01]} Qf4 {[%clk 00:12:46]} {[%emt 00:05:17]}
29. Qxf7 {[%clk 00:14:19]} {[%emt 00:06:44]} Bxf3 {[%clk 00:13:11]} {[%emt
00:00:05]} 30. Qxg8+ {[%clk 00:14:30]} {[%emt 00:00:19]} Kb7 {[%clk 00:13:36]}
{[%emt 00:00:05]} 31. gxf3 {[%clk 00:14:46]} {[%emt 00:00:15]} Qxd2 {[%clk
00:13:45]} {[%emt 00:00:21]} 32. Qg2 {[%clk 00:15:03]} {[%emt 00:00:12]} Qf4
{[%clk 00:13:52]} {[%emt 00:00:22]} 33. Qe2 {[%clk 00:14:01]} {[%emt 00:01:34]}
c6 {[%clk 00:13:25]} {[%emt 00:00:56]} 34. Rg1 {[%clk 00:10:21]} {[%emt
00:04:10]} Rxh2+ {[%clk 00:13:14]} {[%emt 00:00:40]} 35. Qxh2 {[%clk 00:10:42]}
{[%emt 00:00:10]} Qxf3+ {[%clk 00:13:41]} {[%emt 00:00:02]} 36. Qg2 {[%clk
00:09:41]} {[%emt 00:01:31]} Qh5+ {[%clk 00:14:06]} {[%emt 00:00:04]} 37. Qh2
{[%clk 00:10:03]} {[%emt 00:00:09]} Qf3+ {[%clk 00:14:31]} {[%emt 00:00:04]}
1/2-1/2

[Event "Swedish U16 Team Championship 2019 - Final"]
[Site "Molnlycke Kulturhus, Biblioteksgatan 2, Molnlycke, Sweden"]
[Date "2019.08.16"]
[Round "2.9"]
[White "Ivarsson, Sebastian"]
[Black "Nord, Alexander"]
[Result "0-1"]
[TimeControl "90 minutes + 30 seconds per move from move one."]
[WhiteElo "2001"]
[BlackElo "1881"]

1. d4 {[%clk 01:30:34]} {[%emt 00:00:12]} e6 {[%clk 01:30:55]} {[%emt
00:00:05]} 2. c4 {[%clk 01:30:38]} {[%emt 00:00:25]} Nf6 {[%clk 01:31:22]}
{[%emt 00:00:02]} 3. Nc3 {[%clk 01:29:35]} {[%emt 00:01:33]} Bb4 {[%clk
01:31:48]} {[%emt 00:00:05]} 4. e3 {[%clk 01:30:00]} {[%emt 00:00:05]} O-O
{[%clk 01:32:13]} {[%emt 00:00:05]} 5. Bd3 {[%clk 01:30:22]} {[%emt 00:00:07]}
c5 {[%clk 01:32:28]} {[%emt 00:00:15]} 6. Nf3 {[%clk 01:30:08]} {[%emt
00:00:44]} Nc6 {[%clk 01:32:10]} {[%emt 00:00:49]} 7. O-O {[%clk 01:29:13]}
{[%emt 00:01:22]} Bxc3 {[%clk 01:32:37]} {[%emt 00:00:05]} 8. bxc3 {[%clk
01:29:15]} {[%emt 00:00:28]} d6 {[%clk 01:33:03]} {[%emt 00:00:04]} 9. Nd2
{[%clk 01:22:14]} {[%emt 00:07:31]} e5 {[%clk 01:32:03]} {[%emt 00:01:30]} 10.
d5 {[%clk 01:22:30]} {[%emt 00:00:14]} Ne7 {[%clk 01:32:28]} {[%emt 00:00:05]}
11. f4 {[%clk 01:22:12]} {[%emt 00:00:48]} exf4 {[%clk 01:28:10]} {[%emt
00:04:49]} 12. exf4 {[%clk 01:22:36]} {[%emt 00:00:06]} Bf5 {[%clk 01:27:46]}
{[%emt 00:00:54]} 13. Nf3 {[%clk 01:19:11]} {[%emt 00:03:55]} Qd7 {[%clk
01:24:04]} {[%emt 00:04:12]} 14. h3 {[%clk 01:16:21]} {[%emt 00:03:20]} Bxd3
{[%clk 01:06:10]} {[%emt 00:18:24]} 15. Qxd3 {[%clk 01:16:45]} {[%emt
00:00:06]} Qf5 {[%clk 01:05:16]} {[%emt 00:01:24]} 16. Qe2 {[%clk 01:01:35]}
{[%emt 00:15:40]} Rae8 {[%clk 01:04:09]} {[%emt 00:01:37]} 17. g4 {[%clk
00:58:47]} {[%emt 00:03:18]} Qd7 {[%clk 00:59:27]} {[%emt 00:05:12]} 18. Qg2
{[%clk 00:49:14]} {[%emt 00:10:01]} b5 {[%clk 00:53:37]} {[%emt 00:06:21]} 19.
cxb5 {[%clk 00:41:01]} {[%emt 00:08:44]} Qxb5 {[%clk 00:53:51]} {[%emt
00:00:15]} 20. Nd2 {[%clk 00:40:28]} {[%emt 00:01:02]} c4 {[%clk 00:52:06]}
{[%emt 00:02:15]} 21. a4 {[%clk 00:28:38]} {[%emt 00:12:21]} Qc5+ {[%clk
00:44:43]} {[%emt 00:07:52]} 22. Qf2 {[%clk 00:28:24]} {[%emt 00:00:42]} Qxd5
{[%clk 00:35:05]} {[%emt 00:10:09]} 23. Qxa7 {[%clk 00:27:48]} {[%emt
00:01:05]} Nc6 {[%clk 00:35:24]} {[%emt 00:00:13]} 24. Qf2 {[%clk 00:27:28]}
{[%emt 00:00:49]} Qd3 {[%clk 00:28:58]} {[%emt 00:06:56]} 25. g5 {[%clk
00:19:39]} {[%emt 00:08:18]} Re2 {[%clk 00:24:07]} {[%emt 00:05:23]} 26. Qh4
{[%clk 00:18:15]} {[%emt 00:01:53]} Nd5 {[%clk 00:16:28]} {[%emt 00:08:10]} 27.
Rf3 {[%clk 00:10:00]} {[%emt 00:08:45]} Qc2 {[%clk 00:16:27]} {[%emt 00:00:30]}
28. f5 {[%clk 00:07:56]} {[%emt 00:02:33]} Ne5 {[%clk 00:15:20]} {[%emt
00:01:37]} 29. Rf2 {[%clk 00:04:16]} {[%emt 00:04:10]} Rxf2 {[%clk 00:11:10]}
{[%emt 00:04:41]} 30. Qxf2 {[%clk 00:04:22]} {[%emt 00:00:24]} Nd3 {[%clk
00:10:10]} {[%emt 00:01:29]} 31. Qf1 {[%clk 00:02:23]} {[%emt 00:02:28]} Nxc3
{[%clk 00:09:33]} {[%emt 00:01:09]} 32. f6 {[%clk 00:00:46]} {[%emt 00:02:07]}
Re8 {[%clk 00:09:32]} {[%emt 00:00:31]} 33. fxg7 {[%clk 00:00:50]} {[%emt
00:00:28]} Re1 {[%clk 00:09:44]} {[%emt 00:00:17]} 0-1

[Event "Swedish U16 Team Championship 2019 - Final"]
[Site "Molnlycke Kulturhus, Biblioteksgatan 2, Molnlycke, Sweden"]
[Date "2019.08.16"]
[Round "2.10"]
[White "Joensson, Oscar"]
[Black "Ljung, Harald"]
[Result "0-1"]
[TimeControl "90 minutes + 30 seconds per move from move one."]
[WhiteElo "1790"]
[BlackElo "1811"]

1. d4 {[%clk 01:30:57]} {[%emt 00:00:02]} Nf6 {[%clk 01:30:50]} {[%emt
00:00:10]} 2. Nf3 {[%clk 01:31:18]} {[%emt 00:00:09]} d5 {[%clk 01:31:07]}
{[%emt 00:00:12]} 3. e3 {[%clk 01:31:27]} {[%emt 00:00:22]} e6 {[%clk
01:30:43]} {[%emt 00:00:52]} 4. Nbd2 {[%clk 01:30:12]} {[%emt 00:01:47]} Be7
{[%clk 01:29:47]} {[%emt 00:01:25]} 5. Bd3 {[%clk 01:29:20]} {[%emt 00:01:22]}
b6 {[%clk 01:29:16]} {[%emt 00:01:02]} 6. e4 {[%clk 01:26:59]} {[%emt
00:02:51]} dxe4 {[%clk 01:28:33]} {[%emt 00:01:11]} 7. Nxe4 {[%clk 01:27:24]}
{[%emt 00:00:07]} Bb7 {[%clk 01:28:47]} {[%emt 00:00:16]} 8. Qe2 {[%clk
01:22:47]} {[%emt 00:05:07]} Nbd7 {[%clk 01:26:00]} {[%emt 00:03:16]} 9. O-O
{[%clk 01:15:36]} {[%emt 00:07:41]} O-O {[%clk 01:23:58]} {[%emt 00:02:31]} 10.
c3 {[%clk 01:13:04]} {[%emt 00:03:03]} c5 {[%clk 01:11:08]} {[%emt 00:13:21]}
11. dxc5 {[%clk 01:07:27]} {[%emt 00:06:07]} Nxc5 {[%clk 01:10:50]} {[%emt
00:00:48]} 12. Nxc5 {[%clk 01:07:50]} {[%emt 00:00:08]} Bxc5 {[%clk 01:11:07]}
{[%emt 00:00:13]} 13. Bg5 {[%clk 01:07:30]} {[%emt 00:00:50]} Be7 {[%clk
01:10:26]} {[%emt 00:01:09]} 14. Rad1 {[%clk 01:07:07]} {[%emt 00:00:53]} Qc7
{[%clk 01:08:51]} {[%emt 00:02:05]} 15. Bh4 {[%clk 00:52:45]} {[%emt 00:14:52]}
Rfd8 {[%clk 01:02:36]} {[%emt 00:06:44]} 16. Rd2 {[%clk 00:47:07]} {[%emt
00:06:08]} a6 {[%clk 00:46:03]} {[%emt 00:17:03]} 17. Rfd1 {[%clk 00:42:13]}
{[%emt 00:05:24]} b5 {[%clk 00:44:30]} {[%emt 00:02:03]} 18. Bg3 {[%clk
00:13:49]} {[%emt 00:28:55]} Qc6 {[%clk 00:40:00]} {[%emt 00:04:59]} 19. Bb1
{[%clk 00:12:59]} {[%emt 00:01:20]} h6 {[%clk 00:37:32]} {[%emt 00:02:58]} 20.
Rd4 {[%clk 00:09:08]} {[%emt 00:04:21]} Rxd4 {[%clk 00:36:20]} {[%emt
00:01:41]} 21. Rxd4 {[%clk 00:09:32]} {[%emt 00:00:06]} Rd8 {[%clk 00:31:58]}
{[%emt 00:04:51]} 22. Rxd8+ {[%clk 00:07:02]} {[%emt 00:03:02]} Bxd8 {[%clk
00:32:21]} {[%emt 00:00:06]} 23. Qd3 {[%clk 00:05:48]} {[%emt 00:01:44]} Qd5
{[%clk 00:23:38]} {[%emt 00:09:12]} 24. Qxd5 {[%clk 00:04:04]} {[%emt
00:02:15]} Bxd5 {[%clk 00:23:17]} {[%emt 00:00:50]} 25. Ne5 {[%clk 00:03:28]}
{[%emt 00:01:07]} Ne4 {[%clk 00:21:35]} {[%emt 00:02:12]} 26. Bf4 {[%clk
00:02:20]} {[%emt 00:01:37]} Bb6 {[%clk 00:20:16]} {[%emt 00:01:48]} 27. Ng4
{[%clk 00:01:23]} {[%emt 00:01:28]} f6 {[%clk 00:10:30]} {[%emt 00:10:16]} 28.
Be3 {[%clk 00:01:38]} {[%emt 00:00:15]} Bc7 {[%clk 00:08:43]} {[%emt 00:02:17]}
29. Bxe4 {[%clk 00:02:02]} {[%emt 00:00:06]} Bxe4 {[%clk 00:09:01]} {[%emt
00:00:13]} 30. Bxh6 {[%clk 00:02:29]} {[%emt 00:00:03]} f5 {[%clk 00:09:17]}
{[%emt 00:00:14]} 31. f3 {[%clk 00:01:30]} {[%emt 00:01:28]} fxg4 {[%clk
00:08:26]} {[%emt 00:01:21]} 32. Bxg7 {[%clk 00:00:51]} {[%emt 00:01:10]} Kxg7
{[%clk 00:08:07]} {[%emt 00:00:49]} 33. fxe4 {[%clk 00:01:16]} {[%emt
00:00:06]} Kf6 {[%clk 00:08:20]} {[%emt 00:00:17]} 34. Kf2 {[%clk 00:01:32]}
{[%emt 00:00:14]} Bxh2 {[%clk 00:08:44]} {[%emt 00:00:06]} 35. g3 {[%clk
00:01:52]} {[%emt 00:00:11]} Ke5 {[%clk 00:09:00]} {[%emt 00:00:13]} 36. Kg2
{[%clk 00:01:23]} {[%emt 00:00:59]} Kxe4 {[%clk 00:08:31]} {[%emt 00:00:59]} 37.
Kxh2 {[%clk 00:01:40]} {[%emt 00:00:13]} Kd3 {[%clk 00:08:19]} {[%emt
00:00:42]} 38. Kg2 {[%clk 00:01:47]} {[%emt 00:00:23]} e5 {[%clk 00:08:09]}
{[%emt 00:00:40]} 39. Kf2 {[%clk 00:01:20]} {[%emt 00:00:58]} Kc2 {[%clk
00:05:03]} {[%emt 00:03:36]} 40. Ke3 {[%clk 00:00:51]} {[%emt 00:00:59]} Kxb2
{[%clk 00:05:17]} {[%emt 00:00:16]} 41. Ke4 {[%clk 00:01:03]} {[%emt 00:00:18]}
Kxa2 {[%clk 00:03:55]} {[%emt 00:01:52]} 42. Kxe5 {[%clk 00:01:22]} {[%emt
00:00:10]} Kb3 {[%clk 00:04:13]} {[%emt 00:00:12]} 43. Kf5 {[%clk 00:01:41]}
{[%emt 00:00:11]} a5 {[%clk 00:04:38]} {[%emt 00:00:05]} 44. Kxg4 {[%clk
00:02:04]} {[%emt 00:00:08]} a4 {[%clk 00:05:04]} {[%emt 00:00:04]} 45. Kh5
{[%clk 00:02:27]} {[%emt 00:00:07]} a3 {[%clk 00:04:52]} {[%emt 00:00:42]} 46.
g4 {[%clk 00:02:51]} {[%emt 00:00:06]} a2 {[%clk 00:05:17]} {[%emt 00:00:05]}
47. g5 {[%clk 00:03:15]} {[%emt 00:00:06]} a1=Q {[%clk 00:05:38]} {[%emt
00:00:09]} 48. Kh6 {[%clk 00:03:17]} {[%emt 00:00:29]} Qxc3 {[%clk 00:05:33]}
{[%emt 00:00:35]} 49. Kh7 {[%clk 00:03:28]} {[%emt 00:00:19]} Kc4 {[%clk
00:05:44]} {[%emt 00:00:19]} 50. g6 {[%clk 00:03:41]} {[%emt 00:00:16]} b4
{[%clk 00:06:05]} {[%emt 00:00:10]} 0-1

[Event "Swedish U16 Team Championship 2019 - Final"]
[Site "Molnlycke Kulturhus, Biblioteksgatan 2, Molnlycke, Sweden"]
[Date "2019.08.16"]
[Round "2.11"]
[White "Nord, Gabriel"]
[Black "Morell, Ludvig"]
[Result "0-1"]
[TimeControl "90 minutes + 30 seconds per move from move one."]
[WhiteElo "1762"]
[BlackElo "1771"]

1. e4 {[%clk 01:30:55]} {[%emt 00:00:03]} c5 {[%clk 01:30:37]} {[%emt
00:00:18]} 2. Nc3 {[%clk 01:31:22]} {[%emt 00:00:10]} Nc6 {[%clk 01:31:02]}
{[%emt 00:00:05]} 3. g3 {[%clk 01:31:03]} {[%emt 00:00:50]} g6 {[%clk
01:30:42]} {[%emt 00:00:50]} 4. Bg2 {[%clk 01:31:28]} {[%emt 00:00:06]} Bg7
{[%clk 01:31:07]} {[%emt 00:00:05]} 5. d3 {[%clk 01:31:54]} {[%emt 00:00:03]}
d6 {[%clk 01:30:30]} {[%emt 00:01:06]} 6. Be3 {[%clk 01:32:19]} {[%emt
00:00:05]} Rb8 {[%clk 01:30:31]} {[%emt 00:00:30]} 7. a4 {[%clk 01:32:13]}
{[%emt 00:00:36]} e6 {[%clk 01:30:28]} {[%emt 00:00:33]} 8. Qd2 {[%clk
01:31:57]} {[%emt 00:00:47]} Nge7 {[%clk 01:30:10]} {[%emt 00:00:48]} 9. Nge2
{[%clk 01:28:54]} {[%emt 00:03:33]} O-O {[%clk 01:28:02]} {[%emt 00:02:38]} 10.
Bh6 {[%clk 01:24:48]} {[%emt 00:04:37]} a6 {[%clk 01:24:24]} {[%emt 00:04:08]}
11. Bxg7 {[%clk 01:23:21]} {[%emt 00:01:57]} Kxg7 {[%clk 01:24:46]} {[%emt
00:00:08]} 12. h4 {[%clk 01:22:37]} {[%emt 00:01:14]} h5 {[%clk 01:21:06]}
{[%emt 00:04:10]} 13. Nf4 {[%clk 01:18:06]} {[%emt 00:05:00]} e5 {[%clk
01:20:13]} {[%emt 00:01:23]} 14. Nfd5 {[%clk 01:15:49]} {[%emt 00:02:48]} Nxd5
{[%clk 01:20:31]} {[%emt 00:00:13]} 15. Nxd5 {[%clk 01:15:10]} {[%emt
00:01:08]} Nd4 {[%clk 01:15:39]} {[%emt 00:05:22]} 16. Qd1 {[%clk 01:10:07]}
{[%emt 00:06:04]} b5 {[%clk 01:06:20]} {[%emt 00:09:18]} 17. c3 {[%clk
01:09:25]} {[%emt 00:01:12]} Nc6 {[%clk 01:05:52]} {[%emt 00:00:58]} 18. Qe2
{[%clk 01:05:43]} {[%emt 00:04:11]} Ne7 {[%clk 01:03:07]} {[%emt 00:03:15]} 19.
Ne3 {[%clk 01:03:53]} {[%emt 00:02:21]} bxa4 {[%clk 00:57:21]} {[%emt
00:06:15]} 20. Rxa4 {[%clk 01:00:01]} {[%emt 00:04:23]} Qb6 {[%clk 00:55:27]}
{[%emt 00:02:23]} 21. Nc4 {[%clk 00:59:29]} {[%emt 00:01:03]} Qc6 {[%clk
00:54:05]} {[%emt 00:01:52]} 22. Ra1 {[%clk 00:58:48]} {[%emt 00:01:11]} f5
{[%clk 00:50:01]} {[%emt 00:04:33]} 23. f4 {[%clk 00:54:47]} {[%emt 00:04:30]}
fxe4 {[%clk 00:43:11]} {[%emt 00:07:21]} 24. Bxe4 {[%clk 00:54:35]} {[%emt
00:00:43]} Qc7 {[%clk 00:42:57]} {[%emt 00:00:44]} 25. Qf3 {[%clk 00:48:15]}
{[%emt 00:06:49]} Bg4 {[%clk 00:42:33]} {[%emt 00:00:55]} 26. Qg2 {[%clk
00:46:47]} {[%emt 00:01:58]} exf4 {[%clk 00:41:24]} {[%emt 00:01:39]} 27. gxf4
{[%clk 00:43:32]} {[%emt 00:03:45]} Rxf4 {[%clk 00:37:18]} {[%emt 00:04:35]} 28.
Rxa6 {[%clk 00:42:50]} {[%emt 00:01:13]} d5 {[%clk 00:32:00]} {[%emt 00:05:47]}
29. Nd6 {[%clk 00:40:44]} {[%emt 00:02:37]} dxe4 {[%clk 00:28:15]} {[%emt
00:04:15]} 30. Qg3 {[%clk 00:41:02]} {[%emt 00:00:12]} g5 {[%clk 00:26:04]}
{[%emt 00:02:40]} 31. hxg5 {[%clk 00:37:49]} {[%emt 00:03:43]} Ng6 {[%clk
00:26:19]} {[%emt 00:00:15]} 32. Rf1 {[%clk 00:30:59]} {[%emt 00:07:20]} Rxf1+
{[%clk 00:22:32]} {[%emt 00:04:17]} 33. Kxf1 {[%clk 00:31:23]} {[%emt
00:00:06]} Qd7 {[%clk 00:19:56]} {[%emt 00:03:05]} 34. Nxe4 {[%clk 00:30:15]}
{[%emt 00:01:38]} Qf5+ {[%clk 00:15:42]} {[%emt 00:04:42]} 35. Kg1 {[%clk
00:29:34]} {[%emt 00:01:13]} Rf8 {[%clk 00:15:02]} {[%emt 00:01:11]} 36. Nf6
{[%clk 00:27:51]} {[%emt 00:02:13]} Qxg5 {[%clk 00:13:51]} {[%emt 00:01:40]} 37.
Qc7+ {[%clk 00:27:06]} {[%emt 00:01:15]} Bd7+ {[%clk 00:14:07]} {[%emt
00:00:15]} 38. Kh1 {[%clk 00:26:42]} {[%emt 00:00:53]} Rxf6 {[%clk 00:09:56]}
{[%emt 00:04:41]} 39. Rxf6 {[%clk 00:26:57]} {[%emt 00:00:16]} Kxf6 {[%clk
00:06:17]} {[%emt 00:04:08]} 40. Qd8+ {[%clk 00:26:48]} {[%emt 00:00:39]} Ne7
{[%clk 00:06:35]} {[%emt 00:00:11]} 41. Qxd7 {[%clk 00:27:12]} {[%emt
00:00:07]} Qc1+ {[%clk 00:06:58]} {[%emt 00:00:06]} 42. Kg2 {[%clk 00:27:22]}
{[%emt 00:00:20]} Qxb2+ {[%clk 00:07:11]} {[%emt 00:00:18]} 43. Kf3 {[%clk
00:27:29]} {[%emt 00:00:23]} Qxc3 {[%clk 00:06:59]} {[%emt 00:00:42]} 44. Qd6+
{[%clk 00:27:28]} {[%emt 00:00:31]} Kf7 {[%clk 00:07:23]} {[%emt 00:00:06]} 45.
Kg2 {[%clk 00:27:00]} {[%emt 00:00:58]} Qd4 {[%clk 00:05:16]} {[%emt 00:02:37]}
46. Qg3 {[%clk 00:26:06]} {[%emt 00:01:24]} Qg7 {[%clk 00:04:56]} {[%emt
00:00:50]} 47. Kh1 {[%clk 00:26:26]} {[%emt 00:00:10]} Qxg3 {[%clk 00:05:16]}
{[%emt 00:00:10]} 48. d4 {[%clk 00:26:51]} {[%emt 00:00:05]} Qg4 {[%clk
00:05:32]} {[%emt 00:00:14]} 0-1